Workbook

Sheet Výstup
A1: Krajský přebor MPK - 2026
A2: Muži | O2: 1 x 120 hs
A3: Datum: 24. 1. 2026 | O3: Kuželna: SKK Rokycany
A4: Kombinace | D4: Kvalifikace | H4: Finále | L4: Celkem
A5: Poř | B5: Jméno | C5: Oddíl | D5: Pl | E5: Do | F5: Ch | G5: Cel | H5: Pl | I5: Do | J5: Ch | K5: Cel | L5: Pl | M5: Do | N5: Ch | O5: Cel
A6: 1 | B6: Michael Kotal | C6: TJ Sokol Zahořany | D6: 409 | E6: 238 | F6: 1 | G6: 647 | L6: =D6+H6 -> 409 | M6: =E6+I6 -> 238 | N6: =F6+J6 -> 1 | O6: =G6+K6 -> 647
A7: 2 | B7: Milan Svoboda | C7: CB Dobřany | D7: 381 | E7: 228 | F7: 2 | G7: 609 | L7: =D7+H7 -> 381 | M7: =E7+I7 -> 228 | N7: =F7+J7 -> 2 | O7: =G7+K7 -> 609
A8: 3 | B8: Milan Wagner | C8: TJ Sokol Plzeň V | D8: 391 | E8: 213 | F8: 1 | G8: 604 | L8: =D8+H8 -> 391 | M8: =E8+I8 -> 213 | N8: =F8+J8 -> 1 | O8: =G8+K8 -> 604
A9: 4 | B9: Jiří Baloun | C9: CB Dobřany | D9: 378 | E9: 209 | F9: 3 | G9: 587 | L9: =D9+H9 -> 378 | M9: =E9+I9 -> 209 | N9: =F9+J9 -> 3 | O9: =G9+K9 -> 587
A10: 5 | B10: Jaroslav Pejsar | C10: TJ Sokol Plzeň V | D10: 384 | E10: 179 | F10: 8 | G10: 563 | L10: =D10+H10 -> 384 | M10: =E10+I10 -> 179 | N10: =F10+J10 -> 8 | O10: =G10+K10 -> 563
A11: 6 | B11: Filip Löffelmann | C11: TJ Sokol Kdyně | D11: 363 | E11: 199 | F11: 2 | G11: 562 | L11: =D11+H11 -> 363 | M11: =E11+I11 -> 199 | N11: =F11+J11 -> 2 | O11: =G11+K11 -> 562
A12: 7 | B12: Vojtěch Špelina | C12: SKK Rokycany | D12: 376 | E12: 184 | F12: 0 | G12: 560 | L12: =D12+H12 -> 376 | M12: =E12+I12 -> 184 | N12: =F12+J12 -> 0 | O12: =G12+K12 -> 560
A13: 8 | B13: Roman Pytlík | C13: SKK Rokycany | D13: 364 | E13: 194 | F13: 2 | G13: 558 | L13: =D13+H13 -> 364 | M13: =E13+I13 -> 194 | N13: =F13+J13 -> 2 | O13: =G13+K13 -> 558
A14: 9 | B14: Michael Martínek | C14: TJ Sokol Zahořany | D14: 371 | E14: 186 | F14: 5 | G14: 557 | L14: =D14+H14 -> 371 | M14: =E14+I14 -> 186 | N14: =F14+J14 -> 5 | O14: =G14+K14 -> 557
A15: 10 | B15: Michal Šneberger | C15: CB Dobřany | D15: 379 | E15: 177 | F15: 4 | G15: 556 | L15: =D15+H15 -> 379 | M15: =E15+I15 -> 177 | N15: =F15+J15 -> 4 | O15: =G15+K15 -> 556
A16: 11 | B16: Jan Vacikar | C16: SK Škoda VS Plzeň | D16: 383 | E16: 173 | F16: 9 | G16: 556 | L16: =D16+H16 -> 383 | M16: =E16+I16 -> 173 | N16: =F16+J16 -> 9 | O16: =G16+K16 -> 556
A17: 12 | B17: Michal Novosad | C17: TJ Slavoj Plzeň | D17: 371 | E17: 177 | F17: 4 | G17: 548 | L17: =D17+H17 -> 371 | M17: =E17+I17 -> 177 | N17: =F17+J17 -> 4 | O17: =G17+K17 -> 548
A18: 13 | B18: Roman Drugda | C18: TJ Slavoj Plzeň | D18: 374 | E18: 172 | F18: 10 | G18: 546 | L18: =D18+H18 -> 374 | M18: =E18+I18 -> 172 | N18: =F18+J18 -> 10 | O18: =G18+K18 -> 546
A19: 14 | B19: Miloš Černohorský | C19: SK Škoda VS Plzeň | D19: 366 | E19: 179 | F19: 3 | G19: 545 | L19: =D19+H19 -> 366 | M19: =E19+I19 -> 179 | N19: =F19+J19 -> 3 | O19: =G19+K19 -> 545
A20: 15 | B20: Tomáš Timura | C20: TJ Sokol Kdyně | D20: 367 | E20: 177 | F20: 4 | G20: 544 | L20: =D20+H20 -> 367 | M20: =E20+I20 -> 177 | N20: =F20+J20 -> 4 | O20: =G20+K20 -> 544
A21: 16 | B21: Václav Loukotka | C21: TJ Slavoj Plzeň | D21: 377 | E21: 166 | F21: 4 | G21: 543 | L21: =D21+H21 -> 377 | M21: =E21+I21 -> 166 | N21: =F21+J21 -> 4 | O21: =G21+K21 -> 543
A22: 17 | B22: Libor Bureš | C22: SKK Rokycany | D22: 354 | E22: 187 | F22: 5 | G22: 541 | L22: =D22+H22 -> 354 | M22: =E22+I22 -> 187 | N22: =F22+J22 -> 5 | O22: =G22+K22 -> 541
A23: 18 | B23: Josef Fišer ml. | C23: CB Dobřany | D23: 366 | E23: 170 | F23: 5 | G23: 536 | L23: =D23+H23 -> 366 | M23: =E23+I23 -> 170 | N23: =F23+J23 -> 5 | O23: =G23+K23 -> 536
A24: 19 | B24: Jan Myslík | C24: Kuželky Holýšov | D24: 369 | E24: 165 | F24: 2 | G24: 534 | L24: =D24+H24 -> 369 | M24: =E24+I24 -> 165 | N24: =F24+J24 -> 2 | O24: =G24+K24 -> 534
A25: 20 | B25: Roman Janota | C25: TJ Přeštice | D25: 359 | E25: 171 | F25: 8 | G25: 530 | L25: =D25+H25 -> 359 | M25: =E25+I25 -> 171 | N25: =F25+J25 -> 8 | O25: =G25+K25 -> 530
A26: 21 | B26: Bedřich Horka | C26: Kuželky Holýšov | D26: 342 | E26: 184 | F26: 5 | G26: 526 | L26: =D26+H26 -> 342 | M26: =E26+I26 -> 184 | N26: =F26+J26 -> 5 | O26: =G26+K26 -> 526
A27: 22 | B27: Petr Fara | C27: SKK Rokycany | D27: 358 | E27: 165 | F27: 3 | G27: 523 | L27: =D27+H27 -> 358 | M27: =E27+I27 -> 165 | N27: =F27+J27 -> 3 | O27: =G27+K27 -> 523
A28: 23 | B28: Roman Pivoňka | C28: TJ Sokol Újezd sv. Kříže | D28: 372 | E28: 149 | F28: 11 | G28: 521 | L28: =D28+H28 -> 372 | M28: =E28+I28 -> 149 | N28: =F28+J28 -> 11 | O28: =G28+K28 -> 521
A29: 24 | B29: Tomáš Vrba | C29: TJ Sokol Pec pod Čerchovem | D29: 355 | E29: 164 | F29: 7 | G29: 519 | L29: =D29+H29 -> 355 | M29: =E29+I29 -> 164 | N29: =F29+J29 -> 7 | O29: =G29+K29 -> 519
A30: 25 | B30: Jaromír Kotas | C30: TJ Slavoj Plzeň | D30: 353 | E30: 149 | F30: 8 | G30: 502
A31: 26 | B31: Zdeněk Eichler | C31: CB Dobřany | D31: 339 | E31: 161 | F31: 11 | G31: 500
A32: 27 | B32: Michal Lohr | C32: TJ Dobřany | D32: 340 | E32: 159 | F32: 5 | G32: 499
A33: 28 | B33: Tomáš Lukeš | C33: Kuželky Holýšov | D33: 335 | E33: 163 | F33: 5 | G33: 498
A34: 29 | B34: Jakub Solfronk | C34: TJ Dobřany | D34: 346 | E34: 150 | F34: 7 | G34: 496
A35: 30 | B35: Jan Valdman | C35: TJ Sokol Plzeň V | D35: 347 | E35: 138 | F35: 10 | G35: 485
A36: 31 | B36: Karel Řezníček | C36: TJ Sokol Díly | D36: 349 | E36: 126 | F36: 12 | G36: 475
A37: 32 | B37: David Grössl | C37: TJ Sokol Zahořany | D37: 336 | E37: 136 | F37: 10 | G37: 472
A38: 33
A39: 34
A40: 35
A41: 36
A42: 37
A43: 38
A44: 39
A45: 40
A46: 41
A47: 42
A48: 43
A49: 44
A50: 45
A51: 46
A52: 47
A53: 48
A57: Finále
A58: Muži
A59: Datum: 25. 1. 2026 | G59: Kuželna: SKK Rokycany
A60: 120 hs
A61: Poř | B61: Jméno | C61: Oddíl | D61: Pl | E61: Do | F61: Ch | G61: Cel
A62: 1
A63: 2 | B63: Václav Loukotka | C63: TJ Slavoj Plzeň | D63: 0 | E63: 0 | F63: 0 | G63: 0
A64: 3 | B64: Tomáš Timura | C64: TJ Sokol Kdyně | D64: 0 | E64: 0 | F64: 0 | G64: 0
A65: 4 | B65: Miloš Černohorský | C65: SK Škoda VS Plzeň | D65: 0 | E65: 0 | F65: 0 | G65: 0
A66: 5 | B66: Roman Drugda | C66: TJ Slavoj Plzeň | D66: 0 | E66: 0 | F66: 0 | G66: 0
A67: 6 | B67: Michal Novosad | C67: TJ Slavoj Plzeň | D67: 0 | E67: 0 | F67: 0 | G67: 0
A68: 7 | B68: Jan Vacikar | C68: SK Škoda VS Plzeň | D68: 0 | E68: 0 | F68: 0 | G68: 0
A69: 8 | B69: Michal Šneberger | C69: CB Dobřany | D69: 0 | E69: 0 | F69: 0 | G69: 0
A70: 9 | B70: Michael Martínek | C70: TJ Sokol Zahořany | D70: 0 | E70: 0 | F70: 0 | G70: 0
A71: 10 | B71: Roman Pytlík | C71: SKK Rokycany | D71: 0 | E71: 0 | F71: 0 | G71: 0
A72: 11 | B72: Vojtěch Špelina | C72: SKK Rokycany | D72: 0 | E72: 0 | F72: 0 | G72: 0
A73: 12 | B73: Filip Löffelmann | C73: TJ Sokol Kdyně | D73: 0 | E73: 0 | F73: 0 | G73: 0
A74: 13 | B74: Jaroslav Pejsar | C74: TJ Sokol Plzeň V | D74: 0 | E74: 0 | F74: 0 | G74: 0
A75: 14 | B75: Jiří Baloun | C75: CB Dobřany | D75: 0 | E75: 0 | F75: 0 | G75: 0
A76: 15 | B76: Milan Wagner | C76: TJ Sokol Plzeň V | D76: 0 | E76: 0 | F76: 0 | G76: 0
A77: 16 | B77: Milan Svoboda | C77: CB Dobřany | D77: 0 | E77: 0 | F77: 0 | G77: 0
A78: 17 | B78: Michael Kotal | C78: TJ Sokol Zahořany | D78: 0 | E78: 0 | F78: 0 | G78: 0
A79: 18
A80: 19
A81: 20
A82: 21
A83: 22
A84: 23
A85: 24

Sheet Zadání
A1: Muži
A2: Kvalifikace
A3: Č | B3: Jméno | C3: Oddíl | D3: Pl | E3: Do | F3: Ch | G3: Cel | H3: Pl | I3: Do | J3: Ch | K3: Cel
A4: 1 | B4: =Prezence!B2 -> Roman Pytlík | C4: =Prezence!C2 -> SKK Rokycany | D4: 93 | E4: 52 | F4: 1 | G4: =D4+E4 -> 145 | H4: =SUM(D4:D7) -> 364 | I4: =SUM(E4:E7) -> 194 | J4: =SUM(F4:F7) -> 2 | K4: =SUM(G4:G7) -> 558 | M4: =B4 -> Roman Pytlík | N4: =C4 -> SKK Rokycany | O4: =H4 -> 364 | P4: =I4 -> 194 | Q4: =J4 -> 2 | R4: =K4 -> 558 | T4: =G4+G5 -> 277
D5: 87 | E5: 45 | F5: 0 | G5: =D5+E5 -> 132
D6: 90 | E6: 52 | F6: 0 | G6: =D6+E6 -> 142 | K6: 1-2-4-3 | T6: =G6+G7 -> 281
D7: 94 | E7: 45 | F7: 1 | G7: =D7+E7 -> 139
A8: 2 | B8: =Prezence!B3 -> Michal Šneberger | C8: =Prezence!C3 -> CB Dobřany | D8: 97 | E8: 35 | F8: 2 | G8: =D8+E8 -> 132 | H8: =SUM(D8:D11) -> 379 | I8: =SUM(E8:E11) -> 177 | J8: =SUM(F8:F11) -> 4 | K8: =SUM(G8:G11) -> 556 | M8: =B8 -> Michal Šneberger | N8: =C8 -> CB Dobřany | O8: =H8 -> 379 | P8: =I8 -> 177 | Q8: =J8 -> 4 | R8: =K8 -> 556 | T8: =G8+G9 -> 275
D9: 89 | E9: 54 | F9: 0 | G9: =D9+E9 -> 143
D10: 97 | E10: 43 | F10: 2 | G10: =D10+E10 -> 140 | K10: 2-1-3-4 | T10: =G10+G11 -> 281
D11: 96 | E11: 45 | F11: 0 | G11: =D11+E11 -> 141
A12: 3 | B12: =Prezence!B4 -> Roman Drugda | C12: =Prezence!C4 -> TJ Slavoj Plzeň | D12: 87 | E12: 42 | F12: 1 | G12: =D12+E12 -> 129 | H12: =SUM(D12:D15) -> 374 | I12: =SUM(E12:E15) -> 172 | J12: =SUM(F12:F15) -> 10 | K12: =SUM(G12:G15) -> 546 | M12: =B12 -> Roman Drugda | N12: =C12 -> TJ Slavoj Plzeň | O12: =H12 -> 374 | P12: =I12 -> 172 | Q12: =J12 -> 10 | R12: =K12 -> 546 | T12: =G12+G13 -> 259
D13: 96 | E13: 34 | F13: 3 | G13: =D13+E13 -> 130
D14: 94 | E14: 42 | F14: 4 | G14: =D14+E14 -> 136 | K14: 3-4-2-1 | T14: =G14+G15 -> 287
D15: 97 | E15: 54 | F15: 2 | G15: =D15+E15 -> 151
A16: 4 | B16: =Prezence!B5 -> Jan Valdman | C16: =Prezence!C5 -> TJ Sokol Plzeň V | D16: 87 | E16: 32 | F16: 3 | G16: =D16+E16 -> 119 | H16: =SUM(D16:D19) -> 347 | I16: =SUM(E16:E19) -> 138 | J16: =SUM(F16:F19) -> 10 | K16: =SUM(G16:G19) -> 485 | M16: =B16 -> Jan Valdman | N16: =C16 -> TJ Sokol Plzeň V | O16: =H16 -> 347 | P16: =I16 -> 138 | Q16: =J16 -> 10 | R16: =K16 -> 485 | T16: =G16+G17 -> 232
D17: 86 | E17: 27 | F17: 4 | G17: =D17+E17 -> 113
D18: 86 | E18: 35 | F18: 2 | G18: =D18+E18 -> 121 | K18: 4-3-1-2 | T18: =G18+G19 -> 253
D19: 88 | E19: 44 | F19: 1 | G19: =D19+E19 -> 132
A20: 5 | B20: =Prezence!B6 -> Petr Fara | C20: =Prezence!C6 -> SKK Rokycany | D20: 92 | E20: 36 | F20: 0 | G20: =D20+E20 -> 128 | H20: =SUM(D20:D23) -> 358 | I20: =SUM(E20:E23) -> 165 | J20: =SUM(F20:F23) -> 3 | K20: =SUM(G20:G23) -> 523 | M20: =B20 -> Petr Fara | N20: =C20 -> SKK Rokycany | O20: =H20 -> 358 | P20: =I20 -> 165 | Q20: =J20 -> 3 | R20: =K20 -> 523 | T20: =G20+G21 -> 255
D21: 93 | E21: 34 | F21: 3 | G21: =D21+E21 -> 127
D22: 87 | E22: 51 | F22: 0 | G22: =D22+E22 -> 138 | K22: 1-2-4-3 | T22: =G22+G23 -> 268
D23: 86 | E23: 44 | F23: 0 | G23: =D23+E23 -> 130
A24: 6 | B24: =Prezence!B7 -> Roman Janota | C24: =Prezence!C7 -> TJ Přeštice | D24: 72 | E24: 34 | F24: 2 | G24: =D24+E24 -> 106 | H24: =SUM(D24:D27) -> 359 | I24: =SUM(E24:E27) -> 171 | J24: =SUM(F24:F27) -> 8 | K24: =SUM(G24:G27) -> 530 | M24: =B24 -> Roman Janota | N24: =C24 -> TJ Přeštice | O24: =H24 -> 359 | P24: =I24 -> 171 | Q24: =J24 -> 8 | R24: =K24 -> 530 | T24: =G24+G25 -> 229
D25: 96 | E25: 27 | F25: 5 | G25: =D25+E25 -> 123
D26: 93 | E26: 60 | F26: 0 | G26: =D26+E26 -> 153 | K26: 2-1-3-4 | T26: =G26+G27 -> 301
D27: 98 | E27: 50 | F27: 1 | G27: =D27+E27 -> 148
A28: 7 | B28: =Prezence!B8 -> Jakub Solfronk | C28: =Prezence!C8 -> TJ Dobřany | D28: 83 | E28: 44 | F28: 1 | G28: =D28+E28 -> 127 | H28: =SUM(D28:D31) -> 346 | I28: =SUM(E28:E31) -> 150 | J28: =SUM(F28:F31) -> 7 | K28: =SUM(G28:G31) -> 496 | M28: =B28 -> Jakub Solfronk | N28: =C28 -> TJ Dobřany | O28: =H28 -> 346 | P28: =I28 -> 150 | Q28: =J28 -> 7 | R28: =K28 -> 496 | T28: =G28+G29 -> 250
D29: 87 | E29: 36 | F29: 1 | G29: =D29+E29 -> 123
D30: 81 | E30: 27 | F30: 3 | G30: =D30+E30 -> 108 | K30: 3-4-2-1 | T30: =G30+G31 -> 246
D31: 95 | E31: 43 | F31: 2 | G31: =D31+E31 -> 138
A32: 8 | B32: =Prezence!B9 -> Jan Myslík | C32: =Prezence!C9 -> Kuželky Holýšov | D32: 96 | E32: 42 | F32: 0 | G32: =D32+E32 -> 138 | H32: =SUM(D32:D35) -> 369 | I32: =SUM(E32:E35) -> 165 | J32: =SUM(F32:F35) -> 2 | K32: =SUM(G32:G35) -> 534 | M32: =B32 -> Jan Myslík | N32: =C32 -> Kuželky Holýšov | O32: =H32 -> 369 | P32: =I32 -> 165 | Q32: =J32 -> 2 | R32: =K32 -> 534 | T32: =G32+G33 -> 270
D33: 97 | E33: 35 | F33: 1 | G33: =D33+E33 -> 132
D34: 77 | E34: 36 | F34: 0 | G34: =D34+E34 -> 113 | K34: 4-3-1-2 | T34: =G34+G35 -> 264
D35: 99 | E35: 52 | F35: 1 | G35: =D35+E35 -> 151
A36: 9 | B36: =Prezence!B10 -> Jan Vacikar | C36: =Prezence!C10 -> SK Škoda VS Plzeň | D36: 104 | E36: 44 | F36: 2 | G36: =D36+E36 -> 148 | H36: =SUM(D36:D39) -> 383 | I36: =SUM(E36:E39) -> 173 | J36: =SUM(F36:F39) -> 9 | K36: =SUM(G36:G39) -> 556 | M36: =B36 -> Jan Vacikar | N36: =C36 -> SK Škoda VS Plzeň | O36: =H36 -> 383 | P36: =I36 -> 173 | Q36: =J36 -> 9 | R36: =K36 -> 556 | T36: =G36+G37 -> 298
D37: 92 | E37: 58 | F37: 0 | G37: =D37+E37 -> 150
D38: 88 | E38: 45 | F38: 2 | G38: =D38+E38 -> 133 | K38: 1-2-4-3 | T38: =G38+G39 -> 258
D39: 99 | E39: 26 | F39: 5 | G39: =D39+E39 -> 125
A40: 10 | B40: =Prezence!B11 -> Zdeněk Eichler | C40: =Prezence!C11 -> CB Dobřany | D40: 84 | E40: 34 | F40: 5 | G40: =D40+E40 -> 118 | H40: =SUM(D40:D43) -> 339 | I40: =SUM(E40:E43) -> 161 | J40: =SUM(F40:F43) -> 11 | K40: =SUM(G40:G43) -> 500 | M40: =B40 -> Zdeněk Eichler | N40: =C40 -> CB Dobřany | O40: =H40 -> 339 | P40: =I40 -> 161 | Q40: =J40 -> 11 | R40: =K40 -> 500 | T40: =G40+G41 -> 260
D41: 91 | E41: 51 | F41: 3 | G41: =D41+E41 -> 142
D42: 88 | E42: 32 | F42: 2 | G42: =D42+E42 -> 120 | K42: 2-1-3-4 | T42: =G42+G43 -> 240
D43: 76 | E43: 44 | F43: 1 | G43: =D43+E43 -> 120
A44: 11 | B44: =Prezence!B12 -> Michal Novosad | C44: =Prezence!C12 -> TJ Slavoj Plzeň | D44: 101 | E44: 45 | F44: 2 | G44: =D44+E44 -> 146 | H44: =SUM(D44:D47) -> 371 | I44: =SUM(E44:E47) -> 177 | J44: =SUM(F44:F47) -> 4 | K44: =SUM(G44:G47) -> 548 | M44: =B44 -> Michal Novosad | N44: =C44 -> TJ Slavoj Plzeň | O44: =H44 -> 371 | P44: =I44 -> 177 | Q44: =J44 -> 4 | R44: =K44 -> 548 | T44: =G44+G45 -> 270
D45: 90 | E45: 34 | F45: 2 | G45: =D45+E45 -> 124
D46: 89 | E46: 45 | F46: 0 | G46: =D46+E46 -> 134 | K46: 3-4-2-1 | T46: =G46+G47 -> 278
D47: 91 | E47: 53 | F47: 0 | G47: =D47+E47 -> 144
A48: 12 | B48: =Prezence!B13 -> Josef Fišer ml. | C48: =Prezence!C13 -> CB Dobřany | D48: 83 | E48: 45 | F48: 2 | G48: =D48+E48 -> 128 | H48: =SUM(D48:D51) -> 366 | I48: =SUM(E48:E51) -> 170 | J48: =SUM(F48:F51) -> 5 | K48: =SUM(G48:G51) -> 536 | M48: =B48 -> Josef Fišer ml. | N48: =C48 -> CB Dobřany | O48: =H48 -> 366 | P48: =I48 -> 170 | Q48: =J48 -> 5 | R48: =K48 -> 536 | T48: =G48+G49 -> 256
D49: 92 | E49: 36 | F49: 1 | G49: =D49+E49 -> 128
D50: 104 | E50: 45 | F50: 1 | G50: =D50+E50 -> 149 | K50: 4-3-1-2 | T50: =G50+G51 -> 280
D51: 87 | E51: 44 | F51: 1 | G51: =D51+E51 -> 131
A52: 13 | B52: =Prezence!B14 -> Michal Lohr | C52: =Prezence!C14 -> TJ Dobřany | D52: 93 | E52: 27 | F52: 3 | G52: =D52+E52 -> 120 | H52: =SUM(D52:D55) -> 340 | I52: =SUM(E52:E55) -> 159 | J52: =SUM(F52:F55) -> 5 | K52: =SUM(G52:G55) -> 499 | M52: =B52 -> Michal Lohr | N52: =C52 -> TJ Dobřany | O52: =H52 -> 340 | P52: =I52 -> 159 | Q52: =J52 -> 5 | R52: =K52 -> 499 | T52: =G52+G53 -> 262
D53: 90 | E53: 52 | F53: 0 | G53: =D53+E53 -> 142
D54: 89 | E54: 44 | F54: 1 | G54: =D54+E54 -> 133 | K54: 1-2-4-3 | T54: =G54+G55 -> 237
D55: 68 | E55: 36 | F55: 1 | G55: =D55+E55 -> 104
A56: 14 | B56: =Prezence!B15 -> Jiří Baloun | C56: =Prezence!C15 -> CB Dobřany | D56: 93 | E56: 50 | F56: 0 | G56: =D56+E56 -> 143 | H56: =SUM(D56:D59) -> 378 | I56: =SUM(E56:E59) -> 209 | J56: =SUM(F56:F59) -> 3 | K56: =SUM(G56:G59) -> 587 | M56: =B56 -> Jiří Baloun | N56: =C56 -> CB Dobřany | O56: =H56 -> 378 | P56: =I56 -> 209 | Q56: =J56 -> 3 | R56: =K56 -> 587 | T56: =G56+G57 -> 293
D57: 97 | E57: 53 | F57: 0 | G57: =D57+E57 -> 150
D58: 96 | E58: 53 | F58: 2 | G58: =D58+E58 -> 149 | K58: 2-1-3-4 | T58: =G58+G59 -> 294
D59: 92 | E59: 53 | F59: 1 | G59: =D59+E59 -> 145
A60: 15 | B60: =Prezence!B16 -> Jaromír Kotas | C60: =Prezence!C16 -> TJ Slavoj Plzeň | D60: 92 | E60: 36 | F60: 1 | G60: =D60+E60 -> 128 | H60: =SUM(D60:D63) -> 353 | I60: =SUM(E60:E63) -> 149 | J60: =SUM(F60:F63) -> 8 | K60: =SUM(G60:G63) -> 502 | M60: =B60 -> Jaromír Kotas | N60: =C60 -> TJ Slavoj Plzeň | O60: =H60 -> 353 | P60: =I60 -> 149 | Q60: =J60 -> 8 | R60: =K60 -> 502 | T60: =G60+G61 -> 256
D61: 84 | E61: 44 | F61: 2 | G61: =D61+E61 -> 128
D62: 88 | E62: 34 | F62: 3 | G62: =D62+E62 -> 122 | K62: 3-4-2-1 | T62: =G62+G63 -> 246
D63: 89 | E63: 35 | F63: 2 | G63: =D63+E63 -> 124
A64: 16 | B64: =Prezence!B17 -> Jaroslav Pejsar | C64: =Prezence!C17 -> TJ Sokol Plzeň V | D64: 84 | E64: 36 | F64: 4 | G64: =D64+E64 -> 120 | H64: =SUM(D64:D67) -> 384 | I64: =SUM(E64:E67) -> 179 | J64: =SUM(F64:F67) -> 8 | K64: =SUM(G64:G67) -> 563 | M64: =B64 -> Jaroslav Pejsar | N64: =C64 -> TJ Sokol Plzeň V | O64: =H64 -> 384 | P64: =I64 -> 179 | Q64: =J64 -> 8 | R64: =K64 -> 563 | T64: =G64+G65 -> 268
D65: 105 | E65: 43 | F65: 2 | G65: =D65+E65 -> 148
D66: 96 | E66: 39 | F66: 1 | G66: =D66+E66 -> 135 | K66: 4-3-1-2 | T66: =G66+G67 -> 295
D67: 99 | E67: 61 | F67: 1 | G67: =D67+E67 -> 160
A68: 17 | B68: =Prezence!B18 -> Miloš Černohorský | C68: =Prezence!C18 -> SK Škoda VS Plzeň | D68: 87 | E68: 63 | F68: 0 | G68: =D68+E68 -> 150 | H68: =SUM(D68:D71) -> 366 | I68: =SUM(E68:E71) -> 179 | J68: =SUM(F68:F71) -> 3 | K68: =SUM(G68:G71) -> 545 | M68: =B68 -> Miloš Černohorský | N68: =C68 -> SK Škoda VS Plzeň | O68: =H68 -> 366 | P68: =I68 -> 179 | Q68: =J68 -> 3 | R68: =K68 -> 545 | T68: =G68+G69 -> 265
D69: 84 | E69: 31 | F69: 1 | G69: =D69+E69 -> 115
D70: 91 | E70: 52 | F70: 1 | G70: =D70+E70 -> 143 | K70: 1-2-4-3 | T70: =G70+G71 -> 280
D71: 104 | E71: 33 | F71: 1 | G71: =D71+E71 -> 137
A72: 18 | B72: =Prezence!B19 -> Milan Wagner | C72: =Prezence!C19 -> TJ Sokol Plzeň V | D72: 97 | E72: 45 | F72: 0 | G72: =D72+E72 -> 142 | H72: =SUM(D72:D75) -> 391 | I72: =SUM(E72:E75) -> 213 | J72: =SUM(F72:F75) -> 1 | K72: =SUM(G72:G75) -> 604 | M72: =B72 -> Milan Wagner | N72: =C72 -> TJ Sokol Plzeň V | O72: =H72 -> 391 | P72: =I72 -> 213 | Q72: =J72 -> 1 | R72: =K72 -> 604 | T72: =G72+G73 -> 299
D73: 103 | E73: 54 | F73: 0 | G73: =D73+E73 -> 157
D74: 102 | E74: 51 | F74: 1 | G74: =D74+E74 -> 153 | K74: 2-1-3-4 | T74: =G74+G75 -> 305
D75: 89 | E75: 63 | F75: 0 | G75: =D75+E75 -> 152
A76: 19 | B76: =Prezence!B20 -> Václav Loukotka | C76: =Prezence!C20 -> TJ Slavoj Plzeň | D76: 87 | E76: 41 | F76: 2 | G76: =D76+E76 -> 128 | H76: =SUM(D76:D79) -> 377 | I76: =SUM(E76:E79) -> 166 | J76: =SUM(F76:F79) -> 4 | K76: =SUM(G76:G79) -> 543 | M76: =B76 -> Václav Loukotka | N76: =C76 -> TJ Slavoj Plzeň | O76: =H76 -> 377 | P76: =I76 -> 166 | Q76: =J76 -> 4 | R76: =K76 -> 543 | T76: =G76+G77 -> 247
D77: 83 | E77: 36 | F77: 0 | G77: =D77+E77 -> 119
D78: 102 | E78: 35 | F78: 2 | G78: =D78+E78 -> 137 | K78: 3-4-2-1 | T78: =G78+G79 -> 296
D79: 105 | E79: 54 | F79: 0 | G79: =D79+E79 -> 159
A80: 20 | B80: =Prezence!B21 -> Tomáš Vrba | C80: =Prezence!C21 -> TJ Sokol Pec pod Čerchovem | D80: 100 | E80: 39 | F80: 1 | G80: =D80+E80 -> 139 | H80: =SUM(D80:D83) -> 355 | I80: =SUM(E80:E83) -> 164 | J80: =SUM(F80:F83) -> 7 | K80: =SUM(G80:G83) -> 519 | M80: =B80 -> Tomáš Vrba | N80: =C80 -> TJ Sokol Pec pod Čerchovem | O80: =H80 -> 355 | P80: =I80 -> 164 | Q80: =J80 -> 7 | R80: =K80 -> 519 | T80: =G80+G81 -> 272
D81: 98 | E81: 35 | F81: 2 | G81: =D81+E81 -> 133
D82: 80 | E82: 45 | F82: 1 | G82: =D82+E82 -> 125 | K82: 4-3-1-2 | T82: =G82+G83 -> 247
D83: 77 | E83: 45 | F83: 3 | G83: =D83+E83 -> 122
A84: 21 | B84: =Prezence!B22 -> Roman Pivoňka | C84: =Prezence!C22 -> TJ Sokol Újezd sv. Kříže | D84: 86 | E84: 45 | F84: 3 | G84: =D84+E84 -> 131 | H84: =SUM(D84:D87) -> 372 | I84: =SUM(E84:E87) -> 149 | J84: =SUM(F84:F87) -> 11 | K84: =SUM(G84:G87) -> 521 | M84: =B84 -> Roman Pivoňka | N84: =C84 -> TJ Sokol Újezd sv. Kříže | O84: =H84 -> 372 | P84: =I84 -> 149 | Q84: =J84 -> 11 | R84: =K84 -> 521 | T84: =G84+G85 -> 256
D85: 98 | E85: 27 | F85: 2 | G85: =D85+E85 -> 125
D86: 95 | E86: 24 | F86: 5 | G86: =D86+E86 -> 119 | K86: 1-2-4-3 | T86: =G86+G87 -> 265
D87: 93 | E87: 53 | F87: 1 | G87: =D87+E87 -> 146
A88: 22 | B88: =Prezence!B23 -> David Grössl | C88: =Prezence!C23 -> TJ Sokol Zahořany | D88: 82 | E88: 27 | F88: 1 | G88: =D88+E88 -> 109 | H88: =SUM(D88:D91) -> 336 | I88: =SUM(E88:E91) -> 136 | J88: =SUM(F88:F91) -> 10 | K88: =SUM(G88:G91) -> 472 | M88: =B88 -> David Grössl | N88: =C88 -> TJ Sokol Zahořany | O88: =H88 -> 336 | P88: =I88 -> 136 | Q88: =J88 -> 10 | R88: =K88 -> 472 | T88: =G88+G89 -> 236
D89: 82 | E89: 45 | F89: 1 | G89: =D89+E89 -> 127
D90: 91 | E90: 35 | F90: 3 | G90: =D90+E90 -> 126 | K90: 2-1-3-4 | T90: =G90+G91 -> 236
D91: 81 | E91: 29 | F91: 5 | G91: =D91+E91 -> 110
A92: 23 | B92: =Prezence!B24 -> Bedřich Horka | C92: =Prezence!C24 -> Kuželky Holýšov | D92: 85 | E92: 43 | F92: 2 | G92: =D92+E92 -> 128 | H92: =SUM(D92:D95) -> 342 | I92: =SUM(E92:E95) -> 184 | J92: =SUM(F92:F95) -> 5 | K92: =SUM(G92:G95) -> 526 | M92: =B92 -> Bedřich Horka | N92: =C92 -> Kuželky Holýšov | O92: =H92 -> 342 | P92: =I92 -> 184 | Q92: =J92 -> 5 | R92: =K92 -> 526 | T92: =G92+G93 -> 253
D93: 82 | E93: 43 | F93: 2 | G93: =D93+E93 -> 125
D94: 90 | E94: 45 | F94: 1 | G94: =D94+E94 -> 135 | K94: 3-4-2-1 | T94: =G94+G95 -> 273
D95: 85 | E95: 53 | F95: 0 | G95: =D95+E95 -> 138
A96: 24 | B96: =Prezence!B25 -> Filip Löffelmann | C96: =Prezence!C25 -> TJ Sokol Kdyně | D96: 89 | E96: 59 | F96: 0 | G96: =D96+E96 -> 148 | H96: =SUM(D96:D99) -> 363 | I96: =SUM(E96:E99) -> 199 | J96: =SUM(F96:F99) -> 2 | K96: =SUM(G96:G99) -> 562 | M96: =B96 -> Filip Löffelmann | N96: =C96 -> TJ Sokol Kdyně | O96: =H96 -> 363 | P96: =I96 -> 199 | Q96: =J96 -> 2 | R96: =K96 -> 562 | T96: =G96+G97 -> 294
D97: 92 | E97: 54 | F97: 0 | G97: =D97+E97 -> 146
D98: 93 | E98: 45 | F98: 0 | G98: =D98+E98 -> 138 | K98: 4-3-1-2 | T98: =G98+G99 -> 268
D99: 89 | E99: 41 | F99: 2 | G99: =D99+E99 -> 130
A100: 25 | B100: =Prezence!B26 -> Karel Řezníček | C100: =Prezence!C26 -> TJ Sokol Díly | D100: 98 | E100: 34 | F100: 1 | G100: =D100+E100 -> 132 | H100: =SUM(D100:D103) -> 349 | I100: =SUM(E100:E103) -> 126 | J100: =SUM(F100:F103) -> 12 | K100: =SUM(G100:G103) -> 475 | M100: =B100 -> Karel Řezníček | N100: =C100 -> TJ Sokol Díly | O100: =H100 -> 349 | P100: =I100 -> 126 | Q100: =J100 -> 12 | R100: =K100 -> 475 | T100: =G100+G101 -> 245
D101: 87 | E101: 26 | F101: 4 | G101: =D101+E101 -> 113
D102: 72 | E102: 31 | F102: 3 | G102: =D102+E102 -> 103 | K102: 1-2-4-3 | T102: =G102+G103 -> 230
D103: 92 | E103: 35 | F103: 4 | G103: =D103+E103 -> 127
A104: 26 | B104: =Prezence!B27 -> Tomáš Timura | C104: =Prezence!C27 -> TJ Sokol Kdyně | D104: 91 | E104: 53 | F104: 0 | G104: =D104+E104 -> 144 | H104: =SUM(D104:D107) -> 367 | I104: =SUM(E104:E107) -> 177 | J104: =SUM(F104:F107) -> 4 | K104: =SUM(G104:G107) -> 544 | M104: =B104 -> Tomáš Timura | N104: =C104 -> TJ Sokol Kdyně | O104: =H104 -> 367 | P104: =I104 -> 177 | Q104: =J104 -> 4 | R104: =K104 -> 544 | T104: =G104+G105 -> 282
D105: 96 | E105: 42 | F105: 2 | G105: =D105+E105 -> 138
D106: 94 | E106: 52 | F106: 0 | G106: =D106+E106 -> 146 | K106: 2-1-3-4 | T106: =G106+G107 -> 262
D107: 86 | E107: 30 | F107: 2 | G107: =D107+E107 -> 116
A108: 27 | B108: =Prezence!B28 -> Michael Martínek | C108: =Prezence!C28 -> TJ Sokol Zahořany | D108: 87 | E108: 44 | F108: 3 | G108: =D108+E108 -> 131 | H108: =SUM(D108:D111) -> 371 | I108: =SUM(E108:E111) -> 186 | J108: =SUM(F108:F111) -> 5 | K108: =SUM(G108:G111) -> 557 | M108: =B108 -> Michael Martínek | N108: =C108 -> TJ Sokol Zahořany | O108: =H108 -> 371 | P108: =I108 -> 186 | Q108: =J108 -> 5 | R108: =K108 -> 557 | T108: =G108+G109 -> 274
D109: 94 | E109: 49 | F109: 1 | G109: =D109+E109 -> 143
D110: 99 | E110: 50 | F110: 0 | G110: =D110+E110 -> 149 | K110: 3-4-2-1 | T110: =G110+G111 -> 283
D111: 91 | E111: 43 | F111: 1 | G111: =D111+E111 -> 134
A112: 28 | B112: =Prezence!B29 -> Tomáš Lukeš | C112: =Prezence!C29 -> Kuželky Holýšov | D112: 88 | E112: 41 | F112: 2 | G112: =D112+E112 -> 129 | H112: =SUM(D112:D115) -> 335 | I112: =SUM(E112:E115) -> 163 | J112: =SUM(F112:F115) -> 5 | K112: =SUM(G112:G115) -> 498 | M112: =B112 -> Tomáš Lukeš | N112: =C112 -> Kuželky Holýšov | O112: =H112 -> 335 | P112: =I112 -> 163 | Q112: =J112 -> 5 | R112: =K112 -> 498 | T112: =G112+G113 -> 258
D113: 78 | E113: 51 | F113: 0 | G113: =D113+E113 -> 129
D114: 89 | E114: 36 | F114: 2 | G114: =D114+E114 -> 125 | K114: 4-3-1-2 | T114: =G114+G115 -> 240
D115: 80 | E115: 35 | F115: 1 | G115: =D115+E115 -> 115
A116: 29 | B116: =Prezence!B30 -> Libor Bureš | C116: =Prezence!C30 -> SKK Rokycany | D116: 85 | E116: 43 | F116: 2 | G116: =D116+E116 -> 128 | H116: =SUM(D116:D119) -> 354 | I116: =SUM(E116:E119) -> 187 | J116: =SUM(F116:F119) -> 5 | K116: =SUM(G116:G119) -> 541 | M116: =B116 -> Libor Bureš | N116: =C116 -> SKK Rokycany | O116: =H116 -> 354 | P116: =I116 -> 187 | Q116: =J116 -> 5 | R116: =K116 -> 541 | T116: =G116+G117 -> 259
D117: 86 | E117: 45 | F117: 2 | G117: =D117+E117 -> 131
D118: 86 | E118: 54 | F118: 0 | G118: =D118+E118 -> 140 | K118: 1-2-4-3 | T118: =G118+G119 -> 282
D119: 97 | E119: 45 | F119: 1 | G119: =D119+E119 -> 142
A120: 30 | B120: =Prezence!B31 -> Vojtěch Špelina | C120: =Prezence!C31 -> SKK Rokycany | D120: 97 | E120: 43 | F120: 0 | G120: =D120+E120 -> 140 | H120: =SUM(D120:D123) -> 376 | I120: =SUM(E120:E123) -> 184 | J120: =SUM(F120:F123) -> 0 | K120: =SUM(G120:G123) -> 560 | M120: =B120 -> Vojtěch Špelina | N120: =C120 -> SKK Rokycany | O120: =H120 -> 376 | P120: =I120 -> 184 | Q120: =J120 -> 0 | R120: =K120 -> 560 | T120: =G120+G121 -> 261
D121: 88 | E121: 33 | F121: 0 | G121: =D121+E121 -> 121
D122: 103 | E122: 54 | F122: 0 | G122: =D122+E122 -> 157 | K122: 2-1-3-4 | T122: =G122+G123 -> 299
D123: 88 | E123: 54 | F123: 0 | G123: =D123+E123 -> 142
A124: 31 | B124: =Prezence!B32 -> Michael Kotal | C124: =Prezence!C32 -> TJ Sokol Zahořany | D124: 96 | E124: 54 | F124: 1 | G124: =D124+E124 -> 150 | H124: =SUM(D124:D127) -> 409 | I124: =SUM(E124:E127) -> 238 | J124: =SUM(F124:F127) -> 1 | K124: =SUM(G124:G127) -> 647 | M124: =B124 -> Michael Kotal | N124: =C124 -> TJ Sokol Zahořany | O124: =H124 -> 409 | P124: =I124 -> 238 | Q124: =J124 -> 1 | R124: =K124 -> 647 | T124: =G124+G125 -> 320
D125: 103 | E125: 67 | F125: 0 | G125: =D125+E125 -> 170
D126: 106 | E126: 63 | F126: 0 | G126: =D126+E126 -> 169 | K126: 3-4-2-1 | T126: =G126+G127 -> 327
D127: 104 | E127: 54 | F127: 0 | G127: =D127+E127 -> 158
A128: 32 | B128: =Prezence!B33 -> Milan Svoboda | C128: =Prezence!C33 -> CB Dobřany | D128: 91 | E128: 63 | F128: 0 | G128: =D128+E128 -> 154 | H128: =SUM(D128:D131) -> 381 | I128: =SUM(E128:E131) -> 228 | J128: =SUM(F128:F131) -> 2 | K128: =SUM(G128:G131) -> 609 | M128: =B128 -> Milan Svoboda | N128: =C128 -> CB Dobřany | O128: =H128 -> 381 | P128: =I128 -> 228 | Q128: =J128 -> 2 | R128: =K128 -> 609 | T128: =G128+G129 -> 302
D129: 100 | E129: 48 | F129: 0 | G129: =D129+E129 -> 148
D130: 92 | E130: 54 | F130: 2 | G130: =D130+E130 -> 146 | K130: 4-3-1-2 | T130: =G130+G131 -> 307
D131: 98 | E131: 63 | F131: 0 | G131: =D131+E131 -> 161
A132: 33 | B132: =Prezence!B34 -> 0 | C132: =Prezence!C34 -> 0 | G132: =D132+E132 -> 0 | H132: =SUM(D132:D135) -> 0 | I132: =SUM(E132:E135) -> 0 | J132: =SUM(F132:F135) -> 0 | K132: =SUM(G132:G135) -> 0 | M132: =B132 -> 0 | N132: =C132 -> 0 | O132: =H132 -> 0 | P132: =I132 -> 0 | Q132: =J132 -> 0 | R132: =K132 -> 0 | T132: =G132+G133 -> 0
G133: =D133+E133 -> 0
G134: =D134+E134 -> 0 | K134: 1-2-4-3 | T134: =G134+G135 -> 0
G135: =D135+E135 -> 0
A136: 34 | B136: =Prezence!B35 -> 0 | C136: =Prezence!C35 -> 0 | G136: =D136+E136 -> 0 | H136: =SUM(D136:D139) -> 0 | I136: =SUM(E136:E139) -> 0 | J136: =SUM(F136:F139) -> 0 | K136: =SUM(G136:G139) -> 0 | M136: =B136 -> 0 | N136: =C136 -> 0 | O136: =H136 -> 0 | P136: =I136 -> 0 | Q136: =J136 -> 0 | R136: =K136 -> 0 | T136: =G136+G137 -> 0
G137: =D137+E137 -> 0
G138: =D138+E138 -> 0 | K138: 2-1-3-4 | T138: =G138+G139 -> 0
G139: =D139+E139 -> 0
A140: 35 | B140: =Prezence!B36 -> 0 | C140: =Prezence!C36 -> 0 | G140: =D140+E140 -> 0 | H140: =SUM(D140:D143) -> 0 | I140: =SUM(E140:E143) -> 0 | J140: =SUM(F140:F143) -> 0 | K140: =SUM(G140:G143) -> 0 | M140: =B140 -> 0 | N140: =C140 -> 0 | O140: =H140 -> 0 | P140: =I140 -> 0 | Q140: =J140 -> 0 | R140: =K140 -> 0 | T140: =G140+G141 -> 0
G141: =D141+E141 -> 0
G142: =D142+E142 -> 0 | K142: 3-4-2-1 | T142: =G142+G143 -> 0
G143: =D143+E143 -> 0
A144: 36 | B144: =Prezence!B37 -> 0 | C144: =Prezence!C37 -> 0 | G144: =D144+E144 -> 0 | H144: =SUM(D144:D147) -> 0 | I144: =SUM(E144:E147) -> 0 | J144: =SUM(F144:F147) -> 0 | K144: =SUM(G144:G147) -> 0 | M144: =B144 -> 0 | N144: =C144 -> 0 | O144: =H144 -> 0 | P144: =I144 -> 0 | Q144: =J144 -> 0 | R144: =K144 -> 0 | T144: =G144+G145 -> 0
G145: =D145+E145 -> 0
G146: =D146+E146 -> 0 | K146: 4-3-1-2 | T146: =G146+G147 -> 0
G147: =D147+E147 -> 0
A148: 37 | B148: =Prezence!B38 -> 0 | C148: =Prezence!C38 -> 0 | G148: =D148+E148 -> 0 | H148: =SUM(D148:D151) -> 0 | I148: =SUM(E148:E151) -> 0 | J148: =SUM(F148:F151) -> 0 | K148: =SUM(G148:G151) -> 0 | M148: =B148 -> 0 | N148: =C148 -> 0 | O148: =H148 -> 0 | P148: =I148 -> 0 | Q148: =J148 -> 0 | R148: =K148 -> 0 | T148: =G148+G149 -> 0
G149: =D149+E149 -> 0
G150: =D150+E150 -> 0 | K150: 1-2-4-3 | T150: =G150+G151 -> 0
G151: =D151+E151 -> 0
A152: 38 | B152: =Prezence!B39 -> 0 | C152: =Prezence!C39 -> 0 | G152: =D152+E152 -> 0 | H152: =SUM(D152:D155) -> 0 | I152: =SUM(E152:E155) -> 0 | J152: =SUM(F152:F155) -> 0 | K152: =SUM(G152:G155) -> 0 | M152: =B152 -> 0 | N152: =C152 -> 0 | O152: =H152 -> 0 | P152: =I152 -> 0 | Q152: =J152 -> 0 | R152: =K152 -> 0 | T152: =G152+G153 -> 0
G153: =D153+E153 -> 0
G154: =D154+E154 -> 0 | K154: 2-1-3-4 | T154: =G154+G155 -> 0
G155: =D155+E155 -> 0
A156: 39 | B156: =Prezence!B40 -> 0 | C156: =Prezence!C40 -> 0 | G156: =D156+E156 -> 0 | H156: =SUM(D156:D159) -> 0 | I156: =SUM(E156:E159) -> 0 | J156: =SUM(F156:F159) -> 0 | K156: =SUM(G156:G159) -> 0 | M156: =B156 -> 0 | N156: =C156 -> 0 | O156: =H156 -> 0 | P156: =I156 -> 0 | Q156: =J156 -> 0 | R156: =K156 -> 0 | T156: =G156+G157 -> 0
G157: =D157+E157 -> 0
G158: =D158+E158 -> 0 | K158: 3-4-2-1 | T158: =G158+G159 -> 0
G159: =D159+E159 -> 0
A160: 40 | B160: =Prezence!B41 -> 0 | C160: =Prezence!C41 -> 0 | G160: =D160+E160 -> 0 | H160: =SUM(D160:D163) -> 0 | I160: =SUM(E160:E163) -> 0 | J160: =SUM(F160:F163) -> 0 | K160: =SUM(G160:G163) -> 0 | M160: =B160 -> 0 | N160: =C160 -> 0 | O160: =H160 -> 0 | P160: =I160 -> 0 | Q160: =J160 -> 0 | R160: =K160 -> 0 | T160: =G160+G161 -> 0
G161: =D161+E161 -> 0
G162: =D162+E162 -> 0 | K162: 4-3-1-2 | T162: =G162+G163 -> 0
G163: =D163+E163 -> 0
A164: 41 | B164: =Prezence!B42 -> 0 | C164: =Prezence!C42 -> 0 | G164: =D164+E164 -> 0 | H164: =SUM(D164:D167) -> 0 | I164: =SUM(E164:E167) -> 0 | J164: =SUM(F164:F167) -> 0 | K164: =SUM(G164:G167) -> 0 | M164: =B164 -> 0 | N164: =C164 -> 0 | O164: =H164 -> 0 | P164: =I164 -> 0 | Q164: =J164 -> 0 | R164: =K164 -> 0 | T164: =G164+G165 -> 0
G165: =D165+E165 -> 0
G166: =D166+E166 -> 0 | K166: 1-2-4-3 | T166: =G166+G167 -> 0
G167: =D167+E167 -> 0
A168: 42 | B168: =Prezence!B43 -> 0 | C168: =Prezence!C43 -> 0 | G168: =D168+E168 -> 0 | H168: =SUM(D168:D171) -> 0 | I168: =SUM(E168:E171) -> 0 | J168: =SUM(F168:F171) -> 0 | K168: =SUM(G168:G171) -> 0 | M168: =B168 -> 0 | N168: =C168 -> 0 | O168: =H168 -> 0 | P168: =I168 -> 0 | Q168: =J168 -> 0 | R168: =K168 -> 0 | T168: =G168+G169 -> 0
G169: =D169+E169 -> 0
G170: =D170+E170 -> 0 | K170: 2-1-3-4 | T170: =G170+G171 -> 0
G171: =D171+E171 -> 0
A172: 43 | B172: =Prezence!B44 -> 0 | C172: =Prezence!C44 -> 0 | G172: =D172+E172 -> 0 | H172: =SUM(D172:D175) -> 0 | I172: =SUM(E172:E175) -> 0 | J172: =SUM(F172:F175) -> 0 | K172: =SUM(G172:G175) -> 0 | M172: =B172 -> 0 | N172: =C172 -> 0 | O172: =H172 -> 0 | P172: =I172 -> 0 | Q172: =J172 -> 0 | R172: =K172 -> 0 | T172: =G172+G173 -> 0
G173: =D173+E173 -> 0
G174: =D174+E174 -> 0 | K174: 3-4-2-1 | T174: =G174+G175 -> 0
G175: =D175+E175 -> 0
A176: 44 | B176: =Prezence!B45 -> 0 | C176: =Prezence!C45 -> 0 | G176: =D176+E176 -> 0 | H176: =SUM(D176:D179) -> 0 | I176: =SUM(E176:E179) -> 0 | J176: =SUM(F176:F179) -> 0 | K176: =SUM(G176:G179) -> 0 | M176: =B176 -> 0 | N176: =C176 -> 0 | O176: =H176 -> 0 | P176: =I176 -> 0 | Q176: =J176 -> 0 | R176: =K176 -> 0 | T176: =G176+G177 -> 0
G177: =D177+E177 -> 0
G178: =D178+E178 -> 0 | K178: 4-3-1-2 | T178: =G178+G179 -> 0
G179: =D179+E179 -> 0
A180: 45 | B180: =Prezence!B46 -> 0 | C180: =Prezence!C46 -> 0 | G180: =D180+E180 -> 0 | H180: =SUM(D180:D183) -> 0 | I180: =SUM(E180:E183) -> 0 | J180: =SUM(F180:F183) -> 0 | K180: =SUM(G180:G183) -> 0 | M180: =B180 -> 0 | N180: =C180 -> 0 | O180: =H180 -> 0 | P180: =I180 -> 0 | Q180: =J180 -> 0 | R180: =K180 -> 0 | T180: =G180+G181 -> 0
G181: =D181+E181 -> 0
G182: =D182+E182 -> 0 | K182: 1-2-4-3 | T182: =G182+G183 -> 0
G183: =D183+E183 -> 0
A184: 46 | B184: =Prezence!B47 -> 0 | C184: =Prezence!C47 -> 0 | G184: =D184+E184 -> 0 | H184: =SUM(D184:D187) -> 0 | I184: =SUM(E184:E187) -> 0 | J184: =SUM(F184:F187) -> 0 | K184: =SUM(G184:G187) -> 0 | M184: =B184 -> 0 | N184: =C184 -> 0 | O184: =H184 -> 0 | P184: =I184 -> 0 | Q184: =J184 -> 0 | R184: =K184 -> 0 | T184: =G184+G185 -> 0
G185: =D185+E185 -> 0
G186: =D186+E186 -> 0 | K186: 2-1-3-4 | T186: =G186+G187 -> 0
G187: =D187+E187 -> 0
A188: 47 | B188: =Prezence!B48 -> 0 | C188: =Prezence!C48 -> 0 | G188: =D188+E188 -> 0 | H188: =SUM(D188:D191) -> 0 | I188: =SUM(E188:E191) -> 0 | J188: =SUM(F188:F191) -> 0 | K188: =SUM(G188:G191) -> 0 | M188: =B188 -> 0 | N188: =C188 -> 0 | O188: =H188 -> 0 | P188: =I188 -> 0 | Q188: =J188 -> 0 | R188: =K188 -> 0 | T188: =G188+G189 -> 0
G189: =D189+E189 -> 0
G190: =D190+E190 -> 0 | K190: 3-4-2-1 | T190: =G190+G191 -> 0
G191: =D191+E191 -> 0
A192: 48 | B192: =Prezence!B49 -> 0 | C192: =Prezence!C49 -> 0 | G192: =D192+E192 -> 0 | H192: =SUM(D192:D195) -> 0 | I192: =SUM(E192:E195) -> 0 | J192: =SUM(F192:F195) -> 0 | K192: =SUM(G192:G195) -> 0 | M192: =B192 -> 0 | N192: =C192 -> 0 | O192: =H192 -> 0 | P192: =I192 -> 0 | Q192: =J192 -> 0 | R192: =K192 -> 0 | T192: =G192+G193 -> 0
G193: =D193+E193 -> 0
G194: =D194+E194 -> 0 | K194: 4-3-1-2 | T194: =G194+G195 -> 0
G195: =D195+E195 -> 0
A197: Finále
A198: 24 | B198: Václav Loukotka | C198: TJ Slavoj Plzeň | D198: 0 | E198: 0 | F198: 0 | G198: =D198+E198 -> 0 | H198: =SUM(D198:D201) -> 0 | I198: =SUM(E198:E201) -> 0 | J198: =SUM(F198:F201) -> 0 | K198: =SUM(G198:G201) -> 0 | L198: =K198+H200 -> 0 | M198: =B198 -> Václav Loukotka | N198: =C198 -> TJ Slavoj Plzeň | O198: =H198 -> 0 | P198: =I198 -> 0 | Q198: =J198 -> 0 | R198: =K198 -> 0 | T198: =G198+G199 -> 0
D199: 0 | E199: 0 | F199: 0 | G199: =D199+E199 -> 0
D200: 0 | E200: 0 | F200: 0 | G200: =D200+E200 -> 0 | K200: 1-2-4-3 | T200: =G200+G201 -> 0
D201: 0 | E201: 0 | F201: 0 | G201: =D201+E201 -> 0
... 93 more rows

Sheet Export
A1: Muži
A3: 1 | B3: =Zadání!M4 -> Roman Pytlík | C3: =Zadání!N4 -> SKK Rokycany | D3: =Zadání!O4 -> 364 | E3: =Zadání!P4 -> 194 | F3: =Zadání!Q4 -> 2 | G3: =Zadání!R4 -> 558
A4: 2 | B4: =Zadání!M8 -> Michal Šneberger | C4: =Zadání!N8 -> CB Dobřany | D4: =Zadání!O8 -> 379 | E4: =Zadání!P8 -> 177 | F4: =Zadání!Q8 -> 4 | G4: =Zadání!R8 -> 556
A5: 3 | B5: =Zadání!M12 -> Roman Drugda | C5: =Zadání!N12 -> TJ Slavoj Plzeň | D5: =Zadání!O12 -> 374 | E5: =Zadání!P12 -> 172 | F5: =Zadání!Q12 -> 10 | G5: =Zadání!R12 -> 546
A6: 4 | B6: =Zadání!M16 -> Jan Valdman | C6: =Zadání!N16 -> TJ Sokol Plzeň V | D6: =Zadání!O16 -> 347 | E6: =Zadání!P16 -> 138 | F6: =Zadání!Q16 -> 10 | G6: =Zadání!R16 -> 485
A7: 5 | B7: =Zadání!M20 -> Petr Fara | C7: =Zadání!N20 -> SKK Rokycany | D7: =Zadání!O20 -> 358 | E7: =Zadání!P20 -> 165 | F7: =Zadání!Q20 -> 3 | G7: =Zadání!R20 -> 523
A8: 6 | B8: =Zadání!M24 -> Roman Janota | C8: =Zadání!N24 -> TJ Přeštice | D8: =Zadání!O24 -> 359 | E8: =Zadání!P24 -> 171 | F8: =Zadání!Q24 -> 8 | G8: =Zadání!R24 -> 530
A9: 7 | B9: =Zadání!M28 -> Jakub Solfronk | C9: =Zadání!N28 -> TJ Dobřany | D9: =Zadání!O28 -> 346 | E9: =Zadání!P28 -> 150 | F9: =Zadání!Q28 -> 7 | G9: =Zadání!R28 -> 496
A10: 8 | B10: =Zadání!M32 -> Jan Myslík | C10: =Zadání!N32 -> Kuželky Holýšov | D10: =Zadání!O32 -> 369 | E10: =Zadání!P32 -> 165 | F10: =Zadání!Q32 -> 2 | G10: =Zadání!R32 -> 534
A11: 9 | B11: =Zadání!M36 -> Jan Vacikar | C11: =Zadání!N36 -> SK Škoda VS Plzeň | D11: =Zadání!O36 -> 383 | E11: =Zadání!P36 -> 173 | F11: =Zadání!Q36 -> 9 | G11: =Zadání!R36 -> 556
A12: 10 | B12: =Zadání!M40 -> Zdeněk Eichler | C12: =Zadání!N40 -> CB Dobřany | D12: =Zadání!O40 -> 339 | E12: =Zadání!P40 -> 161 | F12: =Zadání!Q40 -> 11 | G12: =Zadání!R40 -> 500
A13: 11 | B13: =Zadání!M44 -> Michal Novosad | C13: =Zadání!N44 -> TJ Slavoj Plzeň | D13: =Zadání!O44 -> 371 | E13: =Zadání!P44 -> 177 | F13: =Zadání!Q44 -> 4 | G13: =Zadání!R44 -> 548
A14: 12 | B14: =Zadání!M48 -> Josef Fišer ml. | C14: =Zadání!N48 -> CB Dobřany | D14: =Zadání!O48 -> 366 | E14: =Zadání!P48 -> 170 | F14: =Zadání!Q48 -> 5 | G14: =Zadání!R48 -> 536
A15: 13 | B15: =Zadání!M52 -> Michal Lohr | C15: =Zadání!N52 -> TJ Dobřany | D15: =Zadání!O52 -> 340 | E15: =Zadání!P52 -> 159 | F15: =Zadání!Q52 -> 5 | G15: =Zadání!R52 -> 499
A16: 14 | B16: =Zadání!M56 -> Jiří Baloun | C16: =Zadání!N56 -> CB Dobřany | D16: =Zadání!O56 -> 378 | E16: =Zadání!P56 -> 209 | F16: =Zadání!Q56 -> 3 | G16: =Zadání!R56 -> 587
A17: 15 | B17: =Zadání!M60 -> Jaromír Kotas | C17: =Zadání!N60 -> TJ Slavoj Plzeň | D17: =Zadání!O60 -> 353 | E17: =Zadání!P60 -> 149 | F17: =Zadání!Q60 -> 8 | G17: =Zadání!R60 -> 502
A18: 16 | B18: =Zadání!M64 -> Jaroslav Pejsar | C18: =Zadání!N64 -> TJ Sokol Plzeň V | D18: =Zadání!O64 -> 384 | E18: =Zadání!P64 -> 179 | F18: =Zadání!Q64 -> 8 | G18: =Zadání!R64 -> 563
A19: 17 | B19: =Zadání!M68 -> Miloš Černohorský | C19: =Zadání!N68 -> SK Škoda VS Plzeň | D19: =Zadání!O68 -> 366 | E19: =Zadání!P68 -> 179 | F19: =Zadání!Q68 -> 3 | G19: =Zadání!R68 -> 545
A20: 18 | B20: =Zadání!M72 -> Milan Wagner | C20: =Zadání!N72 -> TJ Sokol Plzeň V | D20: =Zadání!O72 -> 391 | E20: =Zadání!P72 -> 213 | F20: =Zadání!Q72 -> 1 | G20: =Zadání!R72 -> 604
A21: 19 | B21: =Zadání!M76 -> Václav Loukotka | C21: =Zadání!N76 -> TJ Slavoj Plzeň | D21: =Zadání!O76 -> 377 | E21: =Zadání!P76 -> 166 | F21: =Zadání!Q76 -> 4 | G21: =Zadání!R76 -> 543
A22: 20 | B22: =Zadání!M80 -> Tomáš Vrba | C22: =Zadání!N80 -> TJ Sokol Pec pod Čerchovem | D22: =Zadání!O80 -> 355 | E22: =Zadání!P80 -> 164 | F22: =Zadání!Q80 -> 7 | G22: =Zadání!R80 -> 519
A23: 21 | B23: =Zadání!M84 -> Roman Pivoňka | C23: =Zadání!N84 -> TJ Sokol Újezd sv. Kříže | D23: =Zadání!O84 -> 372 | E23: =Zadání!P84 -> 149 | F23: =Zadání!Q84 -> 11 | G23: =Zadání!R84 -> 521
A24: 22 | B24: =Zadání!M88 -> David Grössl | C24: =Zadání!N88 -> TJ Sokol Zahořany | D24: =Zadání!O88 -> 336 | E24: =Zadání!P88 -> 136 | F24: =Zadání!Q88 -> 10 | G24: =Zadání!R88 -> 472
A25: 23 | B25: =Zadání!M92 -> Bedřich Horka | C25: =Zadání!N92 -> Kuželky Holýšov | D25: =Zadání!O92 -> 342 | E25: =Zadání!P92 -> 184 | F25: =Zadání!Q92 -> 5 | G25: =Zadání!R92 -> 526
A26: 24 | B26: =Zadání!M96 -> Filip Löffelmann | C26: =Zadání!N96 -> TJ Sokol Kdyně | D26: =Zadání!O96 -> 363 | E26: =Zadání!P96 -> 199 | F26: =Zadání!Q96 -> 2 | G26: =Zadání!R96 -> 562
A27: 25 | B27: =Zadání!M100 -> Karel Řezníček | C27: =Zadání!N100 -> TJ Sokol Díly | D27: =Zadání!O100 -> 349 | E27: =Zadání!P100 -> 126 | F27: =Zadání!Q100 -> 12 | G27: =Zadání!R100 -> 475
A28: 26 | B28: =Zadání!M104 -> Tomáš Timura | C28: =Zadání!N104 -> TJ Sokol Kdyně | D28: =Zadání!O104 -> 367 | E28: =Zadání!P104 -> 177 | F28: =Zadání!Q104 -> 4 | G28: =Zadání!R104 -> 544
A29: 27 | B29: =Zadání!M108 -> Michael Martínek | C29: =Zadání!N108 -> TJ Sokol Zahořany | D29: =Zadání!O108 -> 371 | E29: =Zadání!P108 -> 186 | F29: =Zadání!Q108 -> 5 | G29: =Zadání!R108 -> 557
A30: 28 | B30: =Zadání!M112 -> Tomáš Lukeš | C30: =Zadání!N112 -> Kuželky Holýšov | D30: =Zadání!O112 -> 335 | E30: =Zadání!P112 -> 163 | F30: =Zadání!Q112 -> 5 | G30: =Zadání!R112 -> 498
A31: 29 | B31: =Zadání!M116 -> Libor Bureš | C31: =Zadání!N116 -> SKK Rokycany | D31: =Zadání!O116 -> 354 | E31: =Zadání!P116 -> 187 | F31: =Zadání!Q116 -> 5 | G31: =Zadání!R116 -> 541
A32: 30 | B32: =Zadání!M120 -> Vojtěch Špelina | C32: =Zadání!N120 -> SKK Rokycany | D32: =Zadání!O120 -> 376 | E32: =Zadání!P120 -> 184 | F32: =Zadání!Q120 -> 0 | G32: =Zadání!R120 -> 560
A33: 31 | B33: =Zadání!M124 -> Michael Kotal | C33: =Zadání!N124 -> TJ Sokol Zahořany | D33: =Zadání!O124 -> 409 | E33: =Zadání!P124 -> 238 | F33: =Zadání!Q124 -> 1 | G33: =Zadání!R124 -> 647
A34: 32 | B34: =Zadání!M128 -> Milan Svoboda | C34: =Zadání!N128 -> CB Dobřany | D34: =Zadání!O128 -> 381 | E34: =Zadání!P128 -> 228 | F34: =Zadání!Q128 -> 2 | G34: =Zadání!R128 -> 609
A35: 33 | B35: =Zadání!M132 -> 0 | C35: =Zadání!N132 -> 0 | D35: =Zadání!O132 -> 0 | E35: =Zadání!P132 -> 0 | F35: =Zadání!Q132 -> 0 | G35: =Zadání!R132 -> 0
A36: 34 | B36: =Zadání!M136 -> 0 | C36: =Zadání!N136 -> 0 | D36: =Zadání!O136 -> 0 | E36: =Zadání!P136 -> 0 | F36: =Zadání!Q136 -> 0 | G36: =Zadání!R136 -> 0
A37: 35 | B37: =Zadání!M140 -> 0 | C37: =Zadání!N140 -> 0 | D37: =Zadání!O140 -> 0 | E37: =Zadání!P140 -> 0 | F37: =Zadání!Q140 -> 0 | G37: =Zadání!R140 -> 0
A38: 36 | B38: =Zadání!M144 -> 0 | C38: =Zadání!N144 -> 0 | D38: =Zadání!O144 -> 0 | E38: =Zadání!P144 -> 0 | F38: =Zadání!Q144 -> 0 | G38: =Zadání!R144 -> 0
A39: 37 | B39: =Zadání!M148 -> 0 | C39: =Zadání!N148 -> 0 | D39: =Zadání!O148 -> 0 | E39: =Zadání!P148 -> 0 | F39: =Zadání!Q148 -> 0 | G39: =Zadání!R148 -> 0
A40: 38 | B40: =Zadání!M152 -> 0 | C40: =Zadání!N152 -> 0 | D40: =Zadání!O152 -> 0 | E40: =Zadání!P152 -> 0 | F40: =Zadání!Q152 -> 0 | G40: =Zadání!R152 -> 0
A41: 39 | B41: =Zadání!M156 -> 0 | C41: =Zadání!N156 -> 0 | D41: =Zadání!O156 -> 0 | E41: =Zadání!P156 -> 0 | F41: =Zadání!Q156 -> 0 | G41: =Zadání!R156 -> 0
A42: 40 | B42: =Zadání!M160 -> 0 | C42: =Zadání!N160 -> 0 | D42: =Zadání!O160 -> 0 | E42: =Zadání!P160 -> 0 | F42: =Zadání!Q160 -> 0 | G42: =Zadání!R160 -> 0
A43: 41 | B43: =Zadání!M164 -> 0 | C43: =Zadání!N164 -> 0 | D43: =Zadání!O164 -> 0 | E43: =Zadání!P164 -> 0 | F43: =Zadání!Q164 -> 0 | G43: =Zadání!R164 -> 0
A44: 42 | B44: =Zadání!M168 -> 0 | C44: =Zadání!N168 -> 0 | D44: =Zadání!O168 -> 0 | E44: =Zadání!P168 -> 0 | F44: =Zadání!Q168 -> 0 | G44: =Zadání!R168 -> 0
A45: 43 | B45: =Zadání!M172 -> 0 | C45: =Zadání!N172 -> 0 | D45: =Zadání!O172 -> 0 | E45: =Zadání!P172 -> 0 | F45: =Zadání!Q172 -> 0 | G45: =Zadání!R172 -> 0
A46: 44 | B46: =Zadání!M176 -> 0 | C46: =Zadání!N176 -> 0 | D46: =Zadání!O176 -> 0 | E46: =Zadání!P176 -> 0 | F46: =Zadání!Q176 -> 0 | G46: =Zadání!R176 -> 0
A47: 45 | B47: =Zadání!M180 -> 0 | C47: =Zadání!N180 -> 0 | D47: =Zadání!O180 -> 0 | E47: =Zadání!P180 -> 0 | F47: =Zadání!Q180 -> 0 | G47: =Zadání!R180 -> 0
A48: 46 | B48: =Zadání!M184 -> 0 | C48: =Zadání!N184 -> 0 | D48: =Zadání!O184 -> 0 | E48: =Zadání!P184 -> 0 | F48: =Zadání!Q184 -> 0 | G48: =Zadání!R184 -> 0
A49: 47 | B49: =Zadání!M188 -> 0 | C49: =Zadání!N188 -> 0 | D49: =Zadání!O188 -> 0 | E49: =Zadání!P188 -> 0 | F49: =Zadání!Q188 -> 0 | G49: =Zadání!R188 -> 0
A50: 48 | B50: =Zadání!M192 -> 0 | C50: =Zadání!N192 -> 0 | D50: =Zadání!O192 -> 0 | E50: =Zadání!P192 -> 0 | F50: =Zadání!Q192 -> 0 | G50: =Zadání!R192 -> 0
A53: 1 | B53: =Zadání!M290 -> 0 | C53: =Zadání!N290 -> 0 | D53: =Zadání!O290 -> 0 | E53: =Zadání!P290 -> 0 | F53: =Zadání!Q290 -> 0 | G53: =Zadání!R290 -> 0
A54: 2 | B54: =Zadání!M286 -> 0 | C54: =Zadání!N286 -> 0 | D54: =Zadání!O286 -> 0 | E54: =Zadání!P286 -> 0 | F54: =Zadání!Q286 -> 0 | G54: =Zadání!R286 -> 0
A55: 3 | B55: =Zadání!M282 -> 0 | C55: =Zadání!N282 -> 0 | D55: =Zadání!O282 -> 0 | E55: =Zadání!P282 -> 0 | F55: =Zadání!Q282 -> 0 | G55: =Zadání!R282 -> 0
A56: 4 | B56: =Zadání!M278 -> 0 | C56: =Zadání!N278 -> 0 | D56: =Zadání!O278 -> 0 | E56: =Zadání!P278 -> 0 | F56: =Zadání!Q278 -> 0 | G56: =Zadání!R278 -> 0
A57: 5 | B57: =Zadání!M274 -> 0 | C57: =Zadání!N274 -> 0 | D57: =Zadání!O274 -> 0 | E57: =Zadání!P274 -> 0 | F57: =Zadání!Q274 -> 0 | G57: =Zadání!R274 -> 0
A58: 6 | B58: =Zadání!M270 -> 0 | C58: =Zadání!N270 -> 0 | D58: =Zadání!O270 -> 0 | E58: =Zadání!P270 -> 0 | F58: =Zadání!Q270 -> 0 | G58: =Zadání!R270 -> 0
A59: 7 | B59: =Zadání!M266 -> 0 | C59: =Zadání!N266 -> 0 | D59: =Zadání!O266 -> 0 | E59: =Zadání!P266 -> 0 | F59: =Zadání!Q266 -> 0 | G59: =Zadání!R266 -> 0
A60: 8 | B60: =Zadání!M262 -> 0 | C60: =Zadání!N262 -> 0 | D60: =Zadání!O262 -> 0 | E60: =Zadání!P262 -> 0 | F60: =Zadání!Q262 -> 0 | G60: =Zadání!R262 -> 0
A61: 9 | B61: =Zadání!M258 -> Michael Kotal | C61: =Zadání!N258 -> TJ Sokol Zahořany | D61: =Zadání!O258 -> 0 | E61: =Zadání!P258 -> 0 | F61: =Zadání!Q258 -> 0 | G61: =Zadání!R258 -> 0
A62: 10 | B62: =Zadání!M254 -> Milan Svoboda | C62: =Zadání!N254 -> CB Dobřany | D62: =Zadání!O254 -> 0 | E62: =Zadání!P254 -> 0 | F62: =Zadání!Q254 -> 0 | G62: =Zadání!R254 -> 0
A63: 11 | B63: =Zadání!M250 -> Milan Wagner | C63: =Zadání!N250 -> TJ Sokol Plzeň V | D63: =Zadání!O250 -> 0 | E63: =Zadání!P250 -> 0 | F63: =Zadání!Q250 -> 0 | G63: =Zadání!R250 -> 0
A64: 12 | B64: =Zadání!M246 -> Jiří Baloun | C64: =Zadání!N246 -> CB Dobřany | D64: =Zadání!O246 -> 0 | E64: =Zadání!P246 -> 0 | F64: =Zadání!Q246 -> 0 | G64: =Zadání!R246 -> 0
A65: 13 | B65: =Zadání!M242 -> Jaroslav Pejsar | C65: =Zadání!N242 -> TJ Sokol Plzeň V | D65: =Zadání!O242 -> 0 | E65: =Zadání!P242 -> 0 | F65: =Zadání!Q242 -> 0 | G65: =Zadání!R242 -> 0
A66: 14 | B66: =Zadání!M238 -> Filip Löffelmann | C66: =Zadání!N238 -> TJ Sokol Kdyně | D66: =Zadání!O238 -> 0 | E66: =Zadání!P238 -> 0 | F66: =Zadání!Q238 -> 0 | G66: =Zadání!R238 -> 0
A67: 15 | B67: =Zadání!M234 -> Vojtěch Špelina | C67: =Zadání!N234 -> SKK Rokycany | D67: =Zadání!O234 -> 0 | E67: =Zadání!P234 -> 0 | F67: =Zadání!Q234 -> 0 | G67: =Zadání!R234 -> 0
A68: 16 | B68: =Zadání!M230 -> Roman Pytlík | C68: =Zadání!N230 -> SKK Rokycany | D68: =Zadání!O230 -> 0 | E68: =Zadání!P230 -> 0 | F68: =Zadání!Q230 -> 0 | G68: =Zadání!R230 -> 0
A69: 17 | B69: =Zadání!M226 -> Michael Martínek | C69: =Zadání!N226 -> TJ Sokol Zahořany | D69: =Zadání!O226 -> 0 | E69: =Zadání!P226 -> 0 | F69: =Zadání!Q226 -> 0 | G69: =Zadání!R226 -> 0
A70: 18 | B70: =Zadání!M222 -> Michal Šneberger | C70: =Zadání!N222 -> CB Dobřany | D70: =Zadání!O222 -> 0 | E70: =Zadání!P222 -> 0 | F70: =Zadání!Q222 -> 0 | G70: =Zadání!R222 -> 0
A71: 19 | B71: =Zadání!M218 -> Jan Vacikar | C71: =Zadání!N218 -> SK Škoda VS Plzeň | D71: =Zadání!O218 -> 0 | E71: =Zadání!P218 -> 0 | F71: =Zadání!Q218 -> 0 | G71: =Zadání!R218 -> 0
A72: 20 | B72: =Zadání!M214 -> Michal Novosad | C72: =Zadání!N214 -> TJ Slavoj Plzeň | D72: =Zadání!O214 -> 0 | E72: =Zadání!P214 -> 0 | F72: =Zadání!Q214 -> 0 | G72: =Zadání!R214 -> 0
A73: 21 | B73: =Zadání!M210 -> Roman Drugda | C73: =Zadání!N210 -> TJ Slavoj Plzeň | D73: =Zadání!O210 -> 0 | E73: =Zadání!P210 -> 0 | F73: =Zadání!Q210 -> 0 | G73: =Zadání!R210 -> 0
A74: 22 | B74: =Zadání!M206 -> Miloš Černohorský | C74: =Zadání!N206 -> SK Škoda VS Plzeň | D74: =Zadání!O206 -> 0 | E74: =Zadání!P206 -> 0 | F74: =Zadání!Q206 -> 0 | G74: =Zadání!R206 -> 0
A75: 23 | B75: =Zadání!M202 -> Tomáš Timura | C75: =Zadání!N202 -> TJ Sokol Kdyně | D75: =Zadání!O202 -> 0 | E75: =Zadání!P202 -> 0 | F75: =Zadání!Q202 -> 0 | G75: =Zadání!R202 -> 0
A76: 24 | B76: =Zadání!M198 -> Václav Loukotka | C76: =Zadání!N198 -> TJ Slavoj Plzeň | D76: =Zadání!O198 -> 0 | E76: =Zadání!P198 -> 0 | F76: =Zadání!Q198 -> 0 | G76: =Zadání!R198 -> 0
A101: 1
A102: 2
A103: 3
A104: 4
A105: 5
A106: 6
A107: 7
A108: 8
A109: 9
A110: 10
A111: 11
A112: 12
A113: 13
A114: 14
A115: 15
A116: 16
A117: 17
A118: 18
A119: 19
A120: 20
A121: 21
A122: 22
A123: 23
A124: 24

Sheet Prezence
B1: Počet hráčů: | C1: =COUNTA(E2:E49) -> 32
A2: 1 | B2: Roman Pytlík | C2: SKK Rokycany | E2: _ | G2: Návod
A3: 2 | B3: Michal Šneberger | C3: CB Dobřany | E3: _ | G3: !!! Pro práci se souborem je nutné mít povolená makra
A4: 3 | B4: Roman Drugda | C4: TJ Slavoj Plzeň | E4: _ | G4: Na listu Prezence se uvedou jména hráčů a oddíl - vhodné udělat předem dle přihlášek z krajů
A5: 4 | B5: Jan Valdman | C5: TJ Sokol Plzeň V | E5: _ | G5: B - Jméno, C - Oddíl, D - kraj+číslo
A6: 5 | B6: Petr Fara | C6: SKK Rokycany | E6: _ | G6: Přítomné označ křížkem ve sloupci E - lze použít pro kontrolu prezence
A7: 6 | B7: Roman Janota | C7: TJ Přeštice | E7: _ | G7: - z listu Prezence se jména přenáší automaticky na list Zadání
A8: 7 | B8: Jakub Solfronk | C8: TJ Dobřany | E8: _ | G8: Na listu Zadání se zadávají výkony po třicítkách, vždy zde vyplňuj jen žlutá pole
A9: 8 | B9: Jan Myslík | C9: Kuželky Holýšov | E9: _ | G9: Na listu Výstup se shromažďují všechna podstatná data
A10: 9 | B10: Jan Vacikar | C10: SK Škoda VS Plzeň | E10: _ | G10: - při kvalifikaci se vše kopíruje a řadí stiskem tlačítka Kvalifikace
A11: 10 | B11: Zdeněk Eichler | C11: CB Dobřany | E11: _ | G11: - obdobně při finále stiskem tlačítka Finále
A12: 11 | B12: Michal Novosad | C12: TJ Slavoj Plzeň | E12: _ | G12: POZOR - po ukončení kvalifikace stiskni tlačítko Přenos - jen jednou, během finále už toto tlačítko nepoužívej !!
A13: 12 | B13: Josef Fišer ml. | C13: CB Dobřany | E13: _ | G13: (tím se přenesou jména finalistů do Zadání a lze zadávat výkony)
A14: 13 | B14: Michal Lohr | C14: TJ Dobřany | E14: _
A15: 14 | B15: Jiří Baloun | C15: CB Dobřany | E15: _ | G15: Poznámka - na list Výstup se kopírují jen "tvrdá" data a vše se po každém bloku hráček
A16: 15 | B16: Jaromír Kotas | C16: TJ Slavoj Plzeň | E16: _ | G16: znovu přepisuje a řadí tím je zabezpečeno, že se data neztratí
A17: 16 | B17: Jaroslav Pejsar | C17: TJ Sokol Plzeň V | E17: _ | G17: Data se vyplňují pouze na listech Zadání a Prezence, v žádném případě nemodifikuj list Export
A18: 17 | B18: Miloš Černohorský | C18: SK Škoda VS Plzeň | E18: _
A19: 18 | B19: Milan Wagner | C19: TJ Sokol Plzeň V | E19: _
A20: 19 | B20: Václav Loukotka | C20: TJ Slavoj Plzeň | E20: _
A21: 20 | B21: Tomáš Vrba | C21: TJ Sokol Pec pod Čerchovem | E21: _
A22: 21 | B22: Roman Pivoňka | C22: TJ Sokol Újezd sv. Kříže | E22: _
A23: 22 | B23: David Grössl | C23: TJ Sokol Zahořany | E23: _
A24: 23 | B24: Bedřich Horka | C24: Kuželky Holýšov | E24: _
A25: 24 | B25: Filip Löffelmann | C25: TJ Sokol Kdyně | E25: _
A26: 25 | B26: Karel Řezníček | C26: TJ Sokol Díly | E26: _
A27: 26 | B27: Tomáš Timura | C27: TJ Sokol Kdyně | E27: _
A28: 27 | B28: Michael Martínek | C28: TJ Sokol Zahořany | E28: _
A29: 28 | B29: Tomáš Lukeš | C29: Kuželky Holýšov | E29: _
A30: 29 | B30: Libor Bureš | C30: SKK Rokycany | E30: _
A31: 30 | B31: Vojtěch Špelina | C31: SKK Rokycany | E31: _
A32: 31 | B32: Michael Kotal | C32: TJ Sokol Zahořany | E32: _
A33: 32 | B33: Milan Svoboda | C33: CB Dobřany | E33: _
A34: 33
A35: 34
A36: 35
A37: 36
A38: 37
A39: 38
A40: 39
A41: 40
A42: 41
A43: 42
A44: 43
A45: 44
A46: 45
A47: 46
A48: 47
A49: 48

Sheet Sestava kompatibility (hidden)
B1: Sestava kompatibility pro MČR 2011 Muži.xls
B2: Spustit: 5.5.2011 6:00
B4: Následující funkce sešitu nejsou podporovány nižšími verzemi aplikace Excel. V případě uložení sešitu v nižší verzi formátu souborů může dojít ke ztrátě nebo omezení uvedených funkcí.
B6: Nevýznamná ztráta věrnosti | E6: Počet výskytů
B8: Některé buňky nebo styly tohoto sešitu obsahují formátování, které není ve vybraném formátu souborů podporováno. Tyto formáty budou převedeny na nejbližší odpovídající formát, který je k dispozici. | E8: 1
